lending/lending_fUSD_20251121
["ID","MTS","AMOUNT","RATE_DAILY","PERIOD"]
[394577625,1763730652141,-687.839346,0.000166,2]
[394577626,1763730652150,-687.839346,0.000166,2]
[394577627,1763730652159,-151.0,0.000166,2]
[394577628,1763730652170,-151.0,0.000166,2]
[394577629,1763730652180,-151.0,0.000166,2]
[394577630,1763730652189,-151.0,0.000166,2]
[394577631,1763730652199,-161.396065,0.000166,2]
[394577632,1763730652208,-150.0,0.00016617,2]
[394577633,1763730652219,-500.0,0.0001662,2]
[394577634,1763730652236,-843.43,0.0001662,2]
[394577635,1763730652245,-609.58,0.0001662,2]
[394577636,1763730652256,-1000.0,0.00016621,2]
[394577637,1763730652266,-500.0,0.00016621,2]
[394577638,1763730652276,-508.19598728,0.00016621,2]
[394577639,1763730652285,-491.23630963,0.00016621,2]
[394577640,1763730652296,-500.56430036,0.00016621,2]
[394577641,1763730652305,-151.278169,0.00016624,2]
[394577642,1763730652315,-151.0,0.00016624,2]
[394577643,1763730652325,-151.0,0.00016632,2]
[394577644,1763730652335,-151.0,0.00016632,2]
[394577645,1763730652344,-151.0,0.00016632,2]
[394577646,1763730652354,-151.0,0.00016632,2]
[394577647,1763730652363,-151.0,0.00016632,2]
[394577648,1763730652373,-277.161856,0.00016632,2]
[394577649,1763730652382,-277.161856,0.00016632,2]
[394577650,1763730652392,-277.161856,0.00016632,2]
[394577651,1763730652401,-277.161856,0.00016632,2]
[394577652,1763730652413,-151.0,0.00016632,2]
[394577653,1763730652422,-151.0,0.00016632,2]
[394577654,1763730652432,-237.616439,0.00016632,2]
[394577655,1763730652442,-152.384083,0.00016632,2]
[394577656,1763730652451,-151.0,0.00016632,2]
[394577657,1763730652461,-151.0,0.00016632,2]
[394577658,1763730652472,-677.487497,0.00016632,2]
[394577659,1763730652482,-151.0,0.00016632,2]
[394577660,1763730652492,-677.487497,0.00016632,2]
[394577661,1763730652502,-677.487497,0.00016632,2]
[394577662,1763730652511,-677.487497,0.00016632,2]
[394577663,1763730652521,-209.415699,0.00016632,2]
[394577664,1763730652530,-209.415699,0.00016632,2]
[394577665,1763730652539,-153.892717,0.00016632,2]
[394577666,1763730652549,-209.415699,0.00016632,2]
[394577667,1763730652559,-209.415699,0.00016632,2]
[394577668,1763730652569,-151.0,0.00016632,2]
[394577669,1763730652579,-151.0,0.00016632,2]
[394577670,1763730652588,-151.0,0.00016632,2]
[394577671,1763730652598,-151.0,0.00016632,2]
[394577672,1763730652608,-16601.18005658,0.00016677,2]
[394577673,1763730652617,-500.0,0.00016695,2]
[394577674,1763730652626,-500.0,0.00016695,2]
[394577675,1763730652636,-500.0,0.00016695,2]
[394577676,1763730652646,-500.0,0.00016695,2]
[394577677,1763730652655,-500.0,0.00016712,2]
[394577678,1763730652667,-500.0,0.00016712,2]
[394577679,1763730652677,-1000.0,0.00016721,2]
[394577680,1763730652687,-1141.91639634,0.00016721,2]
[394577681,1763730652697,-502.08167566,0.00016721,2]
[394577682,1763730652707,-1000.0,0.00016721,2]
[394577683,1763730652717,-1000.0,0.00016721,2]
[394577684,1763730652727,-232.35972452,0.00016721,2]
[394577685,1763730652736,-1000.0,0.00016721,2]
[394577686,1763730652750,-436.25314449,0.00016721,2]
[394577687,1763730652768,-1009.99646483,0.00016721,2]
[394577688,1763730652784,-1000.0,0.00016721,2]
[394577689,1763730652794,-1000.0,0.00016721,2]
[394577690,1763730652803,-1000.0,0.00016721,2]
[394577691,1763730652813,-1000.0,0.00016721,2]
[394577692,1763730652823,-1000.0,0.00016721,2]
[394577693,1763730652832,-1000.0,0.00016721,2]
[394577694,1763730652842,-1000.0,0.00016721,2]
[394577695,1763730652852,-1000.0,0.00016721,2]
[394577696,1763730652861,-151.0,0.00016721,2]
[394577697,1763730652871,-151.0,0.00016721,2]
[394577698,1763730652881,-271.181834,0.00016721,2]
[394577699,1763730652890,-156.644531,0.00016721,2]
[394577700,1763730652899,-156.644531,0.00016721,2]
[394577701,1763730652909,-156.644531,0.00016721,2]
[394577702,1763730652922,-156.644531,0.00016721,2]
[394577703,1763730652931,-151.0,0.00016721,2]
[394577704,1763730652942,-151.0,0.00016734,2]
[394577705,1763730652956,-151.0,0.00016734,2]
[394577706,1763730652968,-151.0,0.00016734,2]
[394577707,1763730652978,-227.38008258,0.00016754,2]
[394577708,1763730652987,-253.75023493,0.0001676,2]
[394577709,1763730652998,-739.0,0.00016795,2]
[394577710,1763730653008,-500.0,0.00016798,2]
[394577711,1763730653017,-500.0,0.00016798,2]
[394577712,1763730653027,-500.0,0.00016798,2]
[394577713,1763730653038,-391.80351367,0.00016798,2]
[394577714,1763730653048,-500.0,0.00016799,2]
[394577715,1763730653058,-500.0,0.00016799,2]
[394577716,1763730653067,-500.0,0.00016799,2]
[394577717,1763730653077,-500.0,0.00016799,2]
[394577718,1763730653087,-151.0,0.00016799,2]
[394577719,1763730653097,-151.0,0.00016799,2]
[394577720,1763730653106,-702.418939,0.00016799,2]
[394577721,1763730653116,-151.0,0.00016799,2]
[394577722,1763730653126,-151.0,0.00016799,2]
[394577723,1763730653136,-702.418939,0.00016799,2]
[394577724,1763730653145,-702.418939,0.00016799,2]
[394577725,1763730653154,-702.418939,0.00016799,2]
[394577726,1763730653166,-687.839346,0.00016799,2]
[394577727,1763730653175,-687.839346,0.00016799,2]
[394577728,1763730653184,-687.839346,0.00016799,2]
[394577729,1763730653194,-687.839342,0.00016799,2]
[394577730,1763730653204,-151.0,0.00016799,2]
[394577731,1763730653213,-171.322248,0.00016799,2]
[394577732,1763730653223,-151.0,0.00016799,2]
[394577733,1763730653233,-151.0,0.00016799,2]
[394577734,1763730653243,-3200.0,0.000168,6]
[394577735,1763730653252,-1300.0,0.000168,6]
[394577736,1763730653262,-151.0,0.00016807,2]
[394577737,1763730653272,-151.0,0.00016807,2]
[394577738,1763730653282,-162.493195,0.00016807,2]
[394577739,1763730653292,-151.0,0.00016807,2]
[394577740,1763730653302,-151.0,0.00016807,2]
[394577741,1763730653312,-151.0,0.00016807,2]
[394577742,1763730653323,-151.0,0.00016807,2]
[394577743,1763730653334,-151.0,0.00016807,2]
[394577744,1763730653343,-151.0,0.00016807,2]
[394577745,1763730653352,-151.0,0.00016807,2]
[394577746,1763730653362,-157.108984,0.00016807,2]
[394577747,1763730653372,-151.0,0.00016807,2]
[394577748,1763730653382,-151.0,0.00016807,2]
[394577749,1763730653392,-154.789385,0.00016807,2]
[394577750,1763730653402,-151.0,0.00016807,2]
[394577751,1763730653413,-151.0,0.00016807,2]
[394577752,1763730653424,-151.0,0.00016807,2]
[394577753,1763730653434,-151.0,0.00016807,2]
[394577754,1763730653444,-151.0,0.00016807,2]
[394577755,1763730653453,-151.0,0.00016807,2]
[394577756,1763730653463,-151.0,0.00016807,2]
[394577757,1763730653472,-151.0,0.00016807,2]
[394577758,1763730653482,-156.837698,0.00016807,2]
[394577759,1763730653492,-218.71,0.00016823,2]
[394577760,1763730653501,-151.0,0.00016827,2]
[394577761,1763730653511,-151.0,0.00016827,2]
[394577762,1763730653520,-277.161856,0.00016827,2]
[394577763,1763730653530,-277.161856,0.00016827,2]
[394577764,1763730653540,-277.161856,0.00016827,2]
[394577765,1763730653550,-277.161856,0.00016827,2]
[394577766,1763730653559,-151.0,0.00016827,2]
[394577767,1763730653569,-151.0,0.00016827,2]
[394577768,1763730653579,-152.44884,0.00016827,2]
[394577769,1763730653589,-151.0,0.00016827,2]
[394577770,1763730653599,-677.487497,0.00016827,2]
[394577771,1763730653609,-151.0,0.00016827,2]
[394577772,1763730653619,-677.487497,0.00016827,2]
[394577773,1763730653629,-677.487497,0.00016827,2]
[394577774,1763730653638,-677.487497,0.00016827,2]
[394577775,1763730653648,-209.415699,0.00016827,2]
[394577776,1763730653658,-209.415699,0.00016827,2]
[394577777,1763730653670,-209.415699,0.00016827,2]
[394577778,1763730653680,-209.415699,0.00016827,2]
[394577779,1763730653689,-151.0,0.00016827,2]
[394577780,1763730653699,-151.0,0.00016827,2]
[394577781,1763730653709,-151.0,0.00016827,2]
[394577782,1763730653719,-260.489249,0.00016827,2]
[394577783,1763730653729,-1476.86144167,0.00016831,2]
[394577784,1763730653738,-500.0,0.00016832,2]
[394577785,1763730653748,-500.0,0.00016832,2]
[394577786,1763730653757,-500.0,0.00016832,2]
[394577787,1763730653767,-500.0,0.00016832,2]
[394577788,1763730653782,-16601.18005658,0.00016836,2]
[394577789,1763730653791,-354.01299627,0.00016842,2]
[394577790,1763730653800,-2000.0,0.00016847,2]
[394577791,1763730653809,-500.0,0.00016849,2]
[394577792,1763730653819,-1978.45,0.00016869,2]
[394577793,1763730653828,-300.21,0.00016886,2]
[394577794,1763730653838,-300.0,0.00016895,2]
[394577795,1763730653847,-533.62358497,0.00016895,2]
[394577796,1763730653857,-500.0,0.00016898,2]
[394577797,1763730653867,-207.924161,0.00016899,2]
[394577798,1763730653877,-500.0,0.00016899,2]
[394577799,1763730653886,-500.0,0.00016899,2]
[394577800,1763730653896,-166.480869,0.00016899,2]
[394577801,1763730653905,-151.0,0.00016899,2]
[394577802,1763730653917,-500.0,0.00016899,2]
[394577803,1763730653927,-477.02490026,0.00016899,2]
[394577804,1763730653936,-279.292448,0.00016899,2]
[394577805,1763730653946,-532.06905087,0.00016899,2]
[394577806,1763730653960,-151.0,0.00016899,2]
[394577807,1763730653971,-500.0,0.00016899,2]
[394577808,1763730653980,-4000.0,0.000169,6]
[394577809,1763730653991,-1700.0,0.000169,6]
[394577810,1763730654001,-1966.34892406,0.000169,2]
[394577811,1763730654011,-537.6819669,0.000169,2]
[394577812,1763730654020,-1915.01465448,0.000169,2]
[394577813,1763730654031,-500.0,0.0001693,2]
[394577814,1763730654041,-151.0,0.00016931,2]
[394577815,1763730654050,-151.0,0.00016931,2]
[394577816,1763730654060,-151.0,0.00016931,2]
[394577817,1763730654069,-299.305757,0.00016931,2]
[394577818,1763730654078,-151.0,0.00016931,2]
[394577819,1763730654088,-152.316813,0.00016931,2]
[394577820,1763730654099,-151.0,0.00016931,2]
[394577821,1763730654109,-151.0,0.00016931,2]
[394577822,1763730654119,-151.0,0.00016931,2]
[394577823,1763730654128,-151.0,0.00016931,2]
[394577824,1763730654138,-151.0,0.00016931,2]
[394577825,1763730654148,-151.0,0.00016931,2]
[394577826,1763730654158,-151.0,0.00016931,2]
[394577827,1763730654174,-151.0,0.00016931,2]
[394577828,1763730654185,-151.0,0.00016931,2]
[394577829,1763730654195,-151.0,0.00016931,2]
[394577830,1763730654205,-158.067616,0.00016931,2]
[394577831,1763730654215,-164.386143,0.00016931,2]
[394577832,1763730654225,-151.0,0.00016931,2]
[394577833,1763730654235,-277.161856,0.00016931,2]
[394577834,1763730654245,-277.161856,0.00016931,2]
[394577835,1763730654256,-277.161856,0.00016931,2]
[394577836,1763730654266,-277.161856,0.00016931,2]
[394577837,1763730654276,-151.0,0.00016931,2]
[394577838,1763730654285,-151.0,0.00016931,2]
[394577839,1763730654295,-244.331539,0.00016931,2]
[394577840,1763730654305,-677.487497,0.00016931,2]
[394577841,1763730654314,-677.487497,0.00016931,2]
[394577842,1763730654324,-151.0,0.00016931,2]
[394577843,1763730654334,-677.487497,0.00016931,2]
[394577844,1763730654344,-677.487497,0.00016931,2]
[394577845,1763730654354,-209.415699,0.00016931,2]
[394577846,1763730654364,-209.415699,0.00016931,2]
[394577847,1763730654373,-209.415699,0.00016931,2]
[394577848,1763730654383,-209.415699,0.00016931,2]
[394577849,1763730654393,-500.0,0.00016934,2]
[394577850,1763730654403,-500.0,0.00016934,2]
[394577851,1763730654416,-500.0,0.00016934,2]
[394577852,1763730654425,-500.0,0.00016934,2]
[394577853,1763730654435,-843.43,0.00016934,2]
[394577854,1763730654444,-500.0,0.00016934,2]
[394577855,1763730654454,-609.58,0.00016934,2]
[394577856,1763730654463,-151.0,0.00016935,2]
[394577857,1763730654473,-151.0,0.00016935,2]
[394577858,1763730654482,-155.980338,0.00016935,2]
[394577859,1763730654491,-151.0,0.00016935,2]
[394577860,1763730654500,-151.0,0.00016935,2]
[394577861,1763730654509,-151.0,0.00016935,2]
[394577862,1763730654519,-151.0,0.00016935,2]
[394577863,1763730654528,-246.66567,0.00016935,2]
[394577864,1763730654538,-151.0,0.00016935,2]
[394577865,1763730654548,-258.910321,0.00016935,2]
[394577866,1763730654558,-151.0,0.00016935,2]
[394577867,1763730654568,-241.561375,0.00016935,2]
[394577868,1763730654577,-151.0,0.00016935,2]
[394577869,1763730654587,-151.0,0.00016935,2]
[394577870,1763730654596,-277.161856,0.00016935,2]
[394577871,1763730654605,-277.161856,0.00016935,2]
[394577872,1763730654614,-277.161856,0.00016935,2]
[394577873,1763730654623,-277.16185,0.00016935,2]
[394577874,1763730654633,-151.0,0.00016935,2]
[394577875,1763730654643,-167.765431,0.00016935,2]
[394577876,1763730654811,-677.487497,0.00016935,2]
[394577877,1763730654824,-677.487497,0.00016935,2]
[394577878,1763730654838,-151.0,0.00016935,2]
[394577879,1763730654848,-677.487497,0.00016935,2]
[394577880,1763730654857,-677.487492,0.00016935,2]
[394577881,1763730654867,-209.415699,0.00016935,2]
[394577882,1763730654877,-209.415699,0.00016935,2]
[394577883,1763730654886,-209.415699,0.00016935,2]
[394577884,1763730654896,-209.415703,0.00016935,2]
[394577885,1763730654906,-151.0,0.00016935,2]
[394577886,1763730654918,-151.0,0.00016935,2]
[394577887,1763730654927,-151.0,0.00016935,2]
[394577888,1763730654937,-1400.12,0.00016941,2]
[394577889,1763730654946,-393.0,0.00016956,2]
[394577890,1763730654957,-218.69,0.00016968,2]
[394577891,1763730654969,-500.0,0.00016969,2]
[394577892,1763730654978,-500.0,0.00016969,2]
[394577893,1763730654988,-500.0,0.00016969,2]
[394577894,1763730654998,-500.0,0.00016969,2]
[394577895,1763730655009,-500.0,0.00016973,2]
[394577896,1763730655019,-500.0,0.00016973,2]
[394577897,1763730655029,-320.01819701,0.00016973,2]
[394577898,1763730655040,-500.0,0.00016973,2]
[394577899,1763730655050,-150.0,0.00016973,2]
[394577900,1763730655059,-1000.0,0.0001698,2]
[394577901,1763730655069,-500.0,0.00016986,2]
[394577902,1763730655079,-500.0,0.00016986,2]
[394577903,1763730655089,-150.0,0.00016986,2]
[394577904,1763730655099,-150.0,0.00016986,2]
[394577905,1763730655108,-150.0,0.00016986,2]
[394577906,1763730655118,-150.0,0.00016986,2]
[394577907,1763730655127,-150.0,0.00016986,2]
[394577908,1763730655137,-150.0,0.00016986,2]
[394577909,1763730655146,-253.75023493,0.00016988,2]
[394577910,1763730655155,-1554.5027257,0.0001699,2]
[394577911,1763730655167,-16601.18005658,0.00016994,2]
[394577912,1763730655176,-300.0,0.00016998,2]
[394577913,1763730655186,-666.0,0.00016998,2]
[394577914,1763730655195,-300.0,0.00016998,2]
[394577915,1763730655204,-666.0,0.00016998,2]
[394577916,1763730655214,-300.0,0.00016999,2]
[394577917,1763730655223,-300.0,0.00016999,2]
[394577918,1763730655233,-500.0,0.00016999,2]
[394577919,1763730655243,-500.0,0.00016999,2]
[394577920,1763730655252,-500.0,0.00016999,2]
[394577921,1763730655262,-636.65436629,0.00016999,2]
[394577922,1763730655271,-500.0,0.00016999,2]
[394577923,1763730655281,-500.0,0.00016999,2]
[394577924,1763730655291,-500.0,0.00016999,2]
[394577925,1763730655300,-500.0,0.00016999,2]
[394577926,1763730655309,-500.0,0.00016999,2]
[394577927,1763730655319,-500.0,0.00016999,2]
[394577928,1763730655328,-500.0,0.00016999,2]
[394577929,1763730655337,-500.0,0.00016999,2]
[394577930,1763730655346,-531.98503967,0.00016999,2]
[394577931,1763730655356,-421.4278406,0.00016999,2]
[394577932,1763730655367,-500.0,0.00016999,2]
[394577933,1763730655376,-500.0,0.00016999,2]
[394577934,1763730655386,-500.0,0.00016999,2]
[394577935,1763730655395,-500.0,0.00016999,2]
[394577936,1763730655406,-500.0,0.00016999,2]
[394577937,1763730655418,-500.0,0.00016999,2]
[394577938,1763730655428,-500.0,0.00016999,2]
[394577939,1763730655439,-500.0,0.00016999,2]
[394577940,1763730655448,-500.0,0.00016999,2]
[394577941,1763730655458,-500.0,0.00016999,2]
[394577942,1763730655467,-500.0,0.00016999,2]
[394577943,1763730655476,-500.0,0.00016999,2]
[394577944,1763730655486,-500.0,0.00016999,2]
[394577945,1763730655495,-500.0,0.00016999,2]
[394577946,1763730655506,-300.0,0.00016999,2]
[394577947,1763730655515,-300.0,0.00016999,2]
[394577948,1763730655524,-666.0,0.00016999,2]
[394577949,1763730655533,-500.0,0.00016999,2]
[394577950,1763730655542,-586.38897268,0.00016999,2]
[394577951,1763730655551,-843.43,0.00016999,2]
[394577952,1763730655561,-843.43,0.00016999,2]
[394577953,1763730655571,-843.43,0.00016999,2]
[394577954,1763730655580,-843.43,0.00016999,2]
[394577955,1763730655590,-843.43,0.00016999,2]
[394577956,1763730655599,-843.43,0.00016999,2]
[394577957,1763730655609,-843.43,0.00016999,2]
[394577958,1763730655619,-843.43,0.00016999,2]
[394577959,1763730655629,-500.0,0.00016999,2]
[394577960,1763730655638,-843.43,0.00016999,2]
[394577961,1763730655648,-563.62196302,0.00016999,2]
[394577962,1763730655659,-843.43,0.00016999,2]
[394577963,1763730655671,-843.43,0.00016999,2]
[394577964,1763730655681,-843.43,0.00016999,2]
[394577965,1763730655691,-843.43,0.00016999,2]
[394577966,1763730655701,-843.43,0.00016999,2]
[394577967,1763730655711,-843.43,0.00016999,2]
[394577968,1763730655721,-843.43,0.00016999,2]
[394577969,1763730655732,-843.60739693,0.00016999,2]
[394577970,1763730655742,-609.58,0.00016999,2]
[394577971,1763730655752,-609.58,0.00016999,2]
[394577972,1763730655762,-609.58,0.00016999,2]
[394577973,1763730655773,-609.58,0.00016999,2]
[394577974,1763730655784,-609.58,0.00016999,2]
[394577975,1763730655794,-609.58,0.00016999,2]
[394577976,1763730655805,-609.58,0.00016999,2]
[394577977,1763730655815,-609.58,0.00016999,2]
[394577978,1763730655826,-609.58,0.00016999,2]
[394577979,1763730655837,-609.58,0.00016999,2]
[394577980,1763730655848,-609.58,0.00016999,2]
[394577981,1763730655858,-609.58,0.00016999,2]
[394577982,1763730655869,-609.58,0.00016999,2]
[394577983,1763730655880,-609.58,0.00016999,2]
[394577984,1763730655891,-609.58,0.00016999,2]
[394577985,1763730655901,-609.58,0.00016999,2]
[394577986,1763730655913,-609.67716056,0.00016999,2]
[394577987,1763730655924,-300.0,0.00016999,2]
[394577988,1763730655934,-666.0,0.00016999,2]
[394577989,1763730655943,-1720840.82063074,0.00017,2]
[394577990,1763730657464,-339.54589124,0.000159,2]
[394577991,1763730657474,-500.0,0.00016184,2]
[394577992,1763730657483,-309.48090476,0.00016321,2]
[394577993,1763730657495,-190.51909524,0.00016321,2]
[394577994,1763730657504,-151.0,0.00016438,2]
[394577995,1763730657514,-80.19777371,0.00016438,2]
[394577996,1763730657526,-70.80222629,0.00016438,2]
[394577997,1763730657535,-154.838469,0.00016438,2]
[394577998,1763730657546,-151.0,0.00016438,2]
[394577999,1763730657555,-389.95680466,0.00016458,2]
[394578000,1763730657567,-110.04319534,0.00016458,2]
[394578001,1763730657577,-500.0,0.00016595,2]
[394578002,1763730657586,-111.99860493,0.00016732,2]
[394578003,1763730657601,-221.82260388,0.00016732,2]
[394578004,1763730657611,-4333.83700132,0.00017,2]
[394578005,1763730657632,-150.0,0.00016047,2]
[394578006,1763730657642,-1828.3723782,0.00017,2]
[394578007,1763730657653,-1502707.87243238,0.00017,2]
[394578008,1763730657665,-250.0,0.00017,2]
[394578009,1763730657675,-2000.0,0.00017,2]
[394578010,1763730657684,-151.0,0.00017,2]
[394578011,1763730657695,-151.0,0.00017,2]
[394578012,1763730657705,-151.0,0.00017,2]
[394578013,1763730657715,-151.0,0.00017,2]
[394578014,1763730657724,-158.472465,0.00017,2]
[394578015,1763730657733,-151.0,0.00017,2]
[394578016,1763730657743,-199.655434,0.00017,2]
[394578017,1763730657753,-1000.0,0.00017,3]
[394578018,1763730657763,-507.0,0.00017007,2]
[394578019,1763730657772,-507.0,0.00017008,2]
[394578020,1763730657782,-1476.86144161,0.00017009,2]
[394578021,1763730657792,-393.0,0.00017014,2]
[394578022,1763730657801,-17020.1739451,0.00017019,2]
[394578023,1763730657811,-1000.0,0.00017021,2]
[394578024,1763730657821,-1000.0,0.00017021,2]
[394578025,1763730657831,-529.75501509,0.00017021,2]
[394578026,1763730657840,-914.60784787,0.00017021,2]
[394578027,1763730657849,-1000.0,0.00017021,2]
[394578028,1763730657859,-1000.0,0.00017021,2]
[394578029,1763730657869,-498.95764127,0.00017021,2]
[394578030,1763730657879,-501.10903681,0.00017021,2]
[394578031,1763730657889,-209.18141817,0.00017021,2]
[394578032,1763730657899,-1000.0,0.00017021,2]
[394578033,1763730657909,-503.07122512,0.00017021,2]
[394578034,1763730657920,-1000.0,0.00017021,2]
[394578035,1763730657930,-1000.0,0.00017021,2]
[394578036,1763730657939,-1000.0,0.00017021,2]
[394578037,1763730657949,-502.00196538,0.00017021,2]
[394578038,1763730657960,-1000.0,0.00017021,2]
[394578039,1763730657971,-812.5306204,0.00017021,2]
[394578040,1763730657980,-1000.0,0.00017021,2]
[394578041,1763730657990,-1000.0,0.00017021,2]
[394578042,1763730658000,-1000.0,0.00017021,2]
[394578043,1763730658009,-1000.0,0.00017021,2]
[394578044,1763730658018,-1000.0,0.00017021,2]
[394578045,1763730658027,-366.0135026,0.00017021,2]
[394578046,1763730658039,-1000.0,0.00017021,2]
[394578047,1763730658048,-503.52814199,0.00017021,2]
[394578048,1763730658059,-1000.0,0.00017021,2]
[394578049,1763730658071,-500.7838585,0.00017021,2]
[394578050,1763730658081,-1000.0,0.00017021,2]
[394578051,1763730658091,-1000.0,0.00017021,2]
[394578052,1763730658100,-575.0,0.00017033,2]
[394578053,1763730658110,-3435.0,0.00017033,2]
[394578054,1763730658120,-1609.041,0.00017033,2]
[394578055,1763730658129,-822.0,0.00017033,2]
[394578056,1763730658139,-1256.0,0.00017033,2]
[394578057,1763730658148,-783.0,0.00017033,2]
[394578058,1763730658157,-1192.0,0.00017033,2]
[394578059,1763730658168,-908.0,0.00017033,2]
[394578060,1763730658177,-561.0,0.00017033,2]
[394578061,1763730658187,-2659.0,0.00017033,2]
[394578062,1763730658196,-1606.0,0.00017033,2]
[394578063,1763730658205,-510.0,0.00017062,2]
[394578064,1763730658215,-273.49,0.00017068,2]
[394578065,1763730658224,-1525.24733641,0.00017068,2]
[394578066,1763730658234,-292.18778882,0.00017068,2]
[394578067,1763730658244,-1500.0,0.00017068,2]
[394578068,1763730658253,-507.0,0.00017082,2]
[394578069,1763730658263,-2026.84885407,0.00017096,2]
[394578070,1763730658273,-2092.314228,0.000171,2]
[394578071,1763730658282,-466.00439136,0.00017106,2]
[394578072,1763730658292,-500.0,0.00017106,2]
[394578073,1763730658302,-500.0,0.00017106,2]
[394578074,1763730658311,-354.01299627,0.00017106,2]
[394578075,1763730658320,-393.0,0.00017114,2]
[394578076,1763730658330,-6149.621,0.00017121,2]
[394578077,1763730658339,-412.626,0.00017121,2]
[394578078,1763730658349,-500.0,0.00017123,2]
[394578079,1763730658359,-300.0,0.00017139,2]
[394578080,1763730658368,-151.0,0.0001714,2]
[394578081,1763730658378,-151.0,0.0001714,2]
[394578082,1763730658387,-151.0,0.0001714,2]
[394578083,1763730658396,-155.14276,0.0001714,2]
[394578084,1763730658406,-5778.18081258,0.0001714,2]
[394578085,1763730658417,-1978.45,0.00017143,2]
[394578086,1763730658427,-393.0,0.00017144,2]
[394578087,1763730658436,-300.0,0.00017147,2]
[394578088,1763730658446,-150.0,0.00017148,2]
[394578089,1763730658455,-150.0,0.00017148,2]
[394578090,1763730658465,-227.503,0.00017148,2]
[394578091,1763730658474,-150.0,0.00017148,2]
[394578092,1763730658484,-283.616,0.00017148,2]
[394578093,1763730658658,-150.816,0.00017148,2]
[394578094,1763730658674,-162.0,0.00017148,2]
[394578095,1763730658684,-1328.86,0.00017148,2]
[394578096,1763730658694,-617.899,0.00017148,2]
[394578097,1763730658703,-16601.18005658,0.00017152,2]
[394578098,1763730658713,-507.0,0.00017157,2]
[394578099,1763730658723,-218.71,0.00017167,2]
[394578100,1763730658733,-1500.0,0.00017168,2]
[394578101,1763730658743,-2026.84885407,0.00017178,2]
[394578102,1763730658753,-1476.86144161,0.00017187,2]
[394578103,1763730658763,-300.21,0.00017213,2]
[394578104,1763730658774,-253.75023493,0.00017216,2]
[394578105,1763730658784,-2026.84885407,0.00017233,2]
[394578106,1763730658793,-529.41,0.00017235,2]
[394578107,1763730658804,-500.0,0.00017243,2]
[394578108,1763730658815,-500.0,0.00017243,2]
[394578109,1763730658824,-500.0,0.00017249,2]
[394578110,1763730658835,-500.0,0.00017259,2]
[394578111,1763730658845,-500.0,0.0001726,2]
[394578112,1763730658854,-500.0,0.0001726,2]
[394578113,1763730658864,-1500.0,0.00017268,2]
[394578114,1763730658873,-1500.0,0.00017268,2]
[394578115,1763730658883,-366.67180907,0.00017268,2]
[394578116,1763730658892,-688.22811824,0.00017268,2]
[394578117,1763730658902,-1500.0,0.00017268,2]
[394578118,1763730658911,-1500.0,0.00017268,2]
[394578119,1763730658922,-1500.0,0.00017268,2]
[394578120,1763730658933,-1500.0,0.00017268,2]
[394578121,1763730658943,-1500.0,0.00017268,2]
[394578122,1763730658954,-360.35317207,0.00017268,2]
[394578123,1763730658965,-1500.0,0.00017268,2]
[394578124,1763730658974,-255.93745245,0.00017268,2]